fUSD/lending_fUSD_20250520
["ID","MTS","AMOUNT","RATE_DAILY","PERIOD"]
[361754080,1747759847871,-151.0,0.00033977,7]
[361754081,1747759847881,-151.0,0.00033977,7]
[361754082,1747759847891,-151.0,0.00033977,7]
[361754083,1747759847901,-151.0,0.00033977,7]
[361754084,1747759847911,-151.0,0.00033977,7]
[361754085,1747759847921,-152.066244,0.00033977,7]
[361754086,1747759847932,-151.0,0.00033977,7]
[361754087,1747759847942,-151.0,0.00033977,7]
[361754088,1747759847951,-151.0,0.00033977,7]
[361754089,1747759847961,-151.0,0.00033977,7]
[361754090,1747759847972,-151.0,0.00033977,7]
[361754091,1747759847982,-151.0,0.00033977,7]
[361754092,1747759847992,-293.266079,0.00033977,7]
[361754093,1747759848002,-151.0,0.00033977,7]
[361754094,1747759848012,-151.0,0.00033977,7]
[361754095,1747759848021,-151.0,0.00033977,7]
[361754096,1747759848033,-253.418342,0.00033977,7]
[361754097,1747759848044,-151.0,0.00033977,7]
[361754098,1747759848053,-151.0,0.00033977,7]
[361754099,1747759848064,-151.0,0.00033977,7]
[361754100,1747759848075,-151.0,0.00033977,7]
[361754101,1747759848085,-151.0,0.00033977,7]
[361754102,1747759848095,-151.0,0.00033977,7]
[361754103,1747759848104,-222.141456,0.00033977,7]
[361754104,1747759848116,-151.0,0.00033977,7]
[361754105,1747759848126,-151.0,0.00033977,7]
[361754106,1747759848135,-151.0,0.00033977,7]
[361754107,1747759848145,-151.0,0.00033977,7]
[361754108,1747759848155,-151.0,0.00033977,7]
[361754109,1747759848165,-227.268649,0.00033977,7]
[361754110,1747759848175,-227.268649,0.00033977,7]
[361754111,1747759848187,-227.268649,0.00033977,7]
[361754112,1747759848197,-227.268649,0.00033977,7]
[361754113,1747759848206,-151.0,0.00033977,7]
[361754114,1747759848216,-151.0,0.00033977,7]
[361754115,1747759848225,-151.0,0.00033977,7]
[361754116,1747759848236,-151.0,0.00033977,7]
[361754117,1747759848247,-325.112336,0.00033977,7]
[361754118,1747759848258,-325.112336,0.00033977,7]
[361754119,1747759848267,-325.112336,0.00033977,7]
[361754120,1747759848276,-325.112336,0.00033977,7]
[361754121,1747759848286,-151.0,0.00033977,7]
[361754122,1747759848295,-151.0,0.00033977,7]
[361754123,1747759848305,-151.0,0.00033977,7]
[361754124,1747759848315,-154.415793,0.00033977,7]
[361754125,1747759848324,-151.0,0.00033977,7]
[361754126,1747759848334,-151.0,0.00033977,7]
[361754127,1747759848345,-199.832406,0.00033977,7]
[361754128,1747759848354,-151.0,0.00033977,7]
[361754129,1747759848364,-151.0,0.00033977,7]
[361754130,1747759848374,-216.412228,0.00033977,7]
[361754131,1747759848383,-216.412228,0.00033977,7]
[361754132,1747759848394,-216.412228,0.00033977,7]
[361754133,1747759848403,-216.412228,0.00033977,7]
[361754134,1747759848414,-151.0,0.00033977,7]
[361754135,1747759848424,-151.0,0.00033977,7]
[361754136,1747759848434,-215.064207,0.00033977,7]
[361754137,1747759848445,-1722.206347,0.00033977,7]
[361754138,1747759848455,-215.064207,0.00033977,7]
[361754139,1747759848465,-1722.206347,0.00033977,7]
[361754140,1747759848476,-215.064207,0.00033977,7]
[361754141,1747759848486,-215.064207,0.00033977,7]
[361754142,1747759848495,-1722.206347,0.00033977,7]
[361754143,1747759848505,-1722.206347,0.00033977,7]
[361754144,1747759848515,-268.058403,0.00033977,7]
[361754145,1747759848525,-268.058403,0.00033977,7]
[361754146,1747759848535,-268.058403,0.00033977,7]
[361754147,1747759848545,-151.0,0.00033977,7]
[361754148,1747759848555,-151.0,0.00033977,7]
[361754149,1747759848565,-268.058403,0.00033977,7]
[361754150,1747759848575,-268.058403,0.00033977,7]
[361754151,1747759848586,-268.058403,0.00033977,7]
[361754152,1747759848596,-151.0,0.00033977,7]
[361754153,1747759848606,-151.0,0.00033977,7]
[361754154,1747759848616,-267.864189,0.00033977,7]
[361754155,1747759848625,-1180.5990256,0.00033977,2]
[361754156,1747759848636,-1180.5990256,0.00033977,2]
[361754157,1747759848646,-276.41726,0.00033977,7]
[361754158,1747759848656,-276.41726,0.00033977,7]
[361754159,1747759848667,-276.41726,0.00033977,7]
[361754160,1747759848677,-276.41726,0.00033977,7]
[361754161,1747759848687,-276.41726,0.00033977,7]
[361754162,1747759848697,-276.41726,0.00033977,7]
[361754163,1747759848706,-151.0,0.00033977,7]
[361754164,1747759848716,-640.219777,0.00033977,7]
[361754165,1747759848726,-640.219777,0.00033977,7]
[361754166,1747759848736,-640.219777,0.00033977,7]
[361754167,1747759848747,-640.219777,0.00033977,7]
[361754168,1747759848757,-151.0,0.00033977,7]
[361754169,1747759848767,-151.0,0.00033977,7]
[361754170,1747759848777,-224.32199,0.00033977,7]
[361754171,1747759848787,-505.7225808,0.00033977,2]
[361754172,1747759848797,-505.7225808,0.00033977,2]
[361754173,1747759848808,-104685.8616804,0.00033977,2]
[361754174,1747759848818,-79985.4632532,0.00033977,2]
[361754175,1747759848828,-151.0,0.00033977,7]
[361754176,1747759848839,-151.0,0.00033977,7]
[361754177,1747759848849,-151.0,0.00033977,7]
[361754178,1747759848860,-188.851637,0.00033977,7]
[361754179,1747759848870,-188.851637,0.00033977,7]
[361754180,1747759848880,-188.851637,0.00033977,7]
[361754181,1747759848891,-188.851629,0.00033977,7]
[361754182,1747759848902,-187.70917,0.00033977,7]
[361754183,1747759848913,-187.70917,0.00033977,7]
[361754184,1747759848923,-187.70917,0.00033977,7]
[361754185,1747759848933,-187.70917,0.00033977,7]
[361754186,1747759848943,-151.0,0.00033977,7]
[361754187,1747759848954,-151.0,0.00033977,7]
[361754188,1747759848964,-211.4,0.00033977,7]
[361754189,1747759848974,-423.243581,0.00033977,7]
[361754190,1747759848984,-19324.4394034,0.00033977,2]
[361754191,1747759848994,-14766.8168754,0.00033977,2]
[361754192,1747759849004,-423.243581,0.00033977,7]
[361754193,1747759849015,-10209.1943475,0.00033977,2]
[361754194,1747759849025,-423.243581,0.00033977,7]
[361754195,1747759849039,-423.243586,0.00033977,7]
[361754196,1747759849050,-1833.749912,0.00033977,7]
[361754197,1747759849060,-1833.749912,0.00033977,7]
[361754198,1747759849071,-1833.749912,0.00033977,7]
[361754199,1747759849082,-1245.47,0.00033979,30]
[361754200,1747759849092,-1245.47,0.00033979,30]
[361754201,1747759849101,-1245.47,0.00033979,30]
[361754202,1747759849112,-1245.47,0.00033979,30]
[361754203,1747759849122,-1245.47,0.00033979,30]
[361754204,1747759849131,-1245.47,0.00033979,30]
[361754205,1747759849141,-1245.47,0.00033979,30]
[361754206,1747759849152,-1245.47,0.00033979,30]
[361754207,1747759849161,-1245.47,0.00033979,30]
[361754208,1747759849171,-1245.47,0.00033979,30]
[361754209,1747759849181,-1245.47,0.00033979,30]
[361754210,1747759849192,-1245.47,0.00033979,30]
[361754211,1747759849202,-1245.47,0.00033979,30]
[361754212,1747759849212,-1245.47,0.00033979,30]
[361754213,1747759849222,-1245.47,0.00033979,30]
[361754214,1747759849232,-1245.47,0.00033979,30]
[361754215,1747759849243,-1245.47,0.00033979,30]
[361754216,1747759849253,-1245.47,0.00033979,30]
[361754217,1747759849263,-1245.47,0.00033979,30]
[361754218,1747759849273,-1245.47,0.00033979,30]
[361754219,1747759849282,-1245.47,0.00033979,30]
[361754220,1747759849292,-1245.47,0.00033979,30]
[361754221,1747759849302,-1245.47,0.00033979,30]
[361754222,1747759849312,-1245.57746119,0.00033979,30]
[361754223,1747759849322,-151.0,0.0003398,7]
[361754224,1747759849331,-151.0,0.0003398,7]
[361754225,1747759849342,-218.835636,0.0003398,7]
[361754226,1747759849351,-218.835636,0.0003398,7]
[361754227,1747759849361,-218.835636,0.0003398,7]
[361754228,1747759849372,-218.835636,0.0003398,7]
[361754229,1747759849382,-260.64405714,0.0003398,7]
[361754230,1747759849392,-151.0,0.0003398,7]
[361754231,1747759849403,-151.0,0.0003398,7]
[361754232,1747759849412,-151.0,0.0003398,7]
[361754233,1747759849423,-151.0,0.0003398,7]
[361754234,1747759849434,-151.0,0.0003398,7]
[361754235,1747759849444,-151.0,0.0003398,7]
[361754236,1747759849453,-210.080811,0.0003398,7]
[361754237,1747759849463,-151.0,0.0003398,7]
[361754238,1747759849473,-151.0,0.0003398,7]
[361754239,1747759849483,-151.0,0.0003398,7]
[361754240,1747759849493,-151.0,0.0003398,7]
[361754241,1747759849504,-151.0,0.0003398,7]
[361754242,1747759849514,-151.682859,0.0003398,7]
[361754243,1747759849524,-151.0,0.0003398,7]
[361754244,1747759849533,-151.0,0.0003398,7]
[361754245,1747759849543,-151.0,0.0003398,7]
[361754246,1747759849553,-151.0,0.0003398,7]
[361754247,1747759849565,-151.0,0.0003398,7]
[361754248,1747759849575,-227.268649,0.0003398,7]
[361754249,1747759849585,-227.268649,0.0003398,7]
[361754250,1747759849595,-151.0,0.0003398,7]
[361754251,1747759849605,-151.0,0.0003398,7]
[361754252,1747759849615,-151.0,0.0003398,7]
[361754253,1747759849624,-325.112336,0.0003398,7]
[361754254,1747759849634,-325.112336,0.0003398,7]
[361754255,1747759849643,-151.0,0.0003398,7]
[361754256,1747759849653,-151.0,0.0003398,7]
[361754257,1747759849663,-151.0,0.0003398,7]
[361754258,1747759849675,-151.0,0.0003398,7]
[361754259,1747759849685,-151.0,0.0003398,7]
[361754260,1747759849695,-216.412228,0.0003398,7]
[361754261,1747759849705,-216.412228,0.0003398,7]
[361754262,1747759849715,-216.412228,0.0003398,7]
[361754263,1747759849726,-216.412235,0.0003398,7]
[361754264,1747759849737,-151.0,0.0003398,7]
[361754265,1747759849747,-215.064207,0.0003398,7]
[361754266,1747759849757,-1722.206347,0.0003398,7]
[361754267,1747759849767,-215.064207,0.0003398,7]
[361754268,1747759849778,-1722.206347,0.0003398,7]
[361754269,1747759849788,-215.064207,0.0003398,7]
[361754270,1747759849798,-215.064207,0.0003398,7]
[361754271,1747759849808,-1722.206347,0.0003398,7]
[361754272,1747759849819,-1722.206347,0.0003398,7]
[361754273,1747759849828,-268.058403,0.0003398,7]
[361754274,1747759849838,-268.058403,0.0003398,7]
[361754275,1747759849849,-151.0,0.0003398,7]
[361754276,1747759850181,-250.7009,0.0003398,7]
[361754277,1747759850191,-268.058403,0.0003398,7]
[361754278,1747759850202,-268.058403,0.0003398,7]
[361754279,1747759850212,-276.41726,0.0003398,7]
[361754280,1747759850223,-276.41726,0.0003398,7]
[361754281,1747759850233,-276.41726,0.0003398,7]
[361754282,1747759850243,-276.41726,0.0003398,7]
[361754283,1747759850253,-640.219777,0.0003398,7]
[361754284,1747759850264,-640.219777,0.0003398,7]
[361754285,1747759850275,-640.219777,0.0003398,7]
[361754286,1747759850285,-640.219777,0.0003398,7]
[361754287,1747759850297,-187.70917,0.0003398,7]
[361754288,1747759850307,-187.70916,0.0003398,7]
[361754289,1747759850318,-23344.7974872,0.0003398,3]
[361754290,1747759850328,-151.0,0.00033989,7]
[361754291,1747759850339,-685.52343054,0.00033989,10]
[361754292,1747759850348,-151.0,0.0003399,7]
[361754293,1747759850359,-151.0,0.0003399,7]
[361754294,1747759850368,-151.0,0.0003399,7]
[361754295,1747759850379,-151.0,0.0003399,7]
[361754296,1747759850389,-218.835636,0.0003399,7]
[361754297,1747759850400,-218.835636,0.0003399,7]
[361754298,1747759850410,-151.0,0.0003399,7]
[361754299,1747759850421,-151.0,0.0003399,7]
[361754300,1747759850431,-151.0,0.0003399,7]
[361754301,1747759850441,-151.0,0.0003399,7]
[361754302,1747759850451,-151.0,0.0003399,7]
[361754303,1747759850461,-151.0,0.0003399,7]
[361754304,1747759850471,-151.0,0.0003399,7]
[361754305,1747759850483,-151.0,0.0003399,7]
[361754306,1747759850492,-151.0,0.0003399,7]
[361754307,1747759850503,-151.0,0.0003399,7]
[361754308,1747759850514,-151.0,0.0003399,7]
[361754309,1747759850525,-151.0,0.0003399,7]
[361754310,1747759850535,-172.137971,0.0003399,7]
[361754311,1747759850545,-151.0,0.0003399,7]
[361754312,1747759850555,-151.0,0.0003399,7]
[361754313,1747759850566,-151.0,0.0003399,7]
[361754314,1747759850576,-227.268649,0.0003399,7]
[361754315,1747759850586,-227.268649,0.0003399,7]
[361754316,1747759850596,-227.268649,0.0003399,7]
[361754317,1747759850607,-227.268649,0.0003399,7]
[361754318,1747759850617,-151.0,0.0003399,7]
[361754319,1747759850627,-255.687566,0.0003399,7]
[361754320,1747759850638,-325.112336,0.0003399,7]
[361754321,1747759850648,-325.112336,0.0003399,7]
[361754322,1747759850659,-325.112336,0.0003399,7]
[361754323,1747759850669,-325.112336,0.0003399,7]
[361754324,1747759850679,-196.492243,0.0003399,7]
[361754325,1747759850689,-215.064207,0.0003399,7]
[361754326,1747759850699,-1722.206347,0.0003399,7]
[361754327,1747759850709,-215.064207,0.0003399,7]
[361754328,1747759850719,-1722.206349,0.0003399,7]
[361754329,1747759850728,-268.058403,0.0003399,7]
[361754330,1747759850739,-268.058403,0.0003399,7]
[361754331,1747759850749,-276.41726,0.0003399,7]
[361754332,1747759850759,-276.41726,0.0003399,7]
[361754333,1747759850769,-640.219777,0.0003399,7]
[361754334,1747759850779,-640.219768,0.0003399,7]
[361754335,1747759850790,-241872.261408,0.0003399,3]
[361754336,1747759850800,-70034.3924617,0.0003399,3]
[361754337,1747759850811,-321.6417982,0.0003399,2]
[361754338,1747759850820,-151.8,0.0003399,2]
[361754339,1747759850830,-1001.341,0.00033999,2]
[361754340,1747759850841,-367236.82007402,0.00034,2]
[361754341,1747759850938,-100119.87652185,0.00034,2]
[361754342,1747759850950,-19888.0511999,0.00034,2]
[361754343,1747759850962,-154364.88359154,0.00034,2]
[361754344,1747759850974,-2686.41,0.00034,2]
[361754345,1747759850990,-997.48,0.00034,2]
[361754346,1747759856283,-1298.56566723,0.00034,2]
[361754347,1747760025539,7000.0,0.00027397,120]
[361754428,1747761032893,-246.36,0.00013699,2]
[361754429,1747761032903,-184.52911377,0.00020187,2]
[361754430,1747761032915,-61.83088623,0.00020187,2]
[361754431,1747761032925,-150.0,0.00021685,2]
[361754432,1747761032935,-289.53318155,0.00021685,2]
[361754433,1747761032954,-10.46681845,0.00021685,2]
[361754434,1747761032964,-524.48982076,0.00021686,2]
[361754435,1747761032975,-442.59217924,0.00021686,2]
[361754436,1747761032986,-34.23836122,0.00021686,2]
[361754437,1747761032997,-805.61696077,0.00021686,2]
[361754438,1747761033028,-484.72367801,0.00021686,2]
[361754439,1747761033039,-1149.0,0.00021686,2]
[361754440,1747761033048,-6828.0,0.00021686,2]
[361754441,1747761033058,-154.0,0.00021686,2]
[361754442,1747761033068,-576.57957868,0.00021686,2]
[361754453,1747761037893,-3464.42042132,0.00021686,2]
[361754454,1747761037905,-880.0,0.00021686,2]
[361754455,1747761037917,-12500.0,0.00024856,3]
[361754456,1747761037927,-12500.0,0.00024865,3]
[361754457,1747761037939,-8483.32467468,0.00024874,3]
[361754458,1747761037954,-620.085039,0.00024874,3]
[361754459,1747761037966,-522.27499128,0.00024874,3]
[361754460,1747761037983,-438.79861884,0.00024874,3]
[361754461,1747761038051,-1630.1785551,0.00024874,3]
[361754471,1747761039949,-805.3381211,0.00024874,3]
[361754472,1747761039959,-9512.38412436,0.00024882,3]
[361754473,1747761040041,-2536.5313342,0.00024882,3]
[361754474,1747761040053,-451.08454144,0.00024882,3]
[361754475,1747761040063,-12500.0,0.00024891,3]
[361754476,1747761040074,-8771.18285458,0.000249,3]
[361754477,1747761040085,-1717.26636972,0.000249,3]
[361754478,1747761040110,-372.34049029,0.000249,3]
[361754479,1747761040147,-466.21881439,0.000249,3]
[361754480,1747761040161,-1172.99147102,0.000249,3]
[361754481,1747761040171,-969.16304331,0.000269,16]
[361754482,1747761040183,-227.74,0.00027397,2]
[361754483,1747761040193,-734.39661757,0.00027452,17]
[361754808,1747761045329,-234.76642559,0.00027452,17]
[361754809,1747761045348,-969.16304316,0.00028003,18]
[361754810,1747761045358,-969.16304316,0.00028555,19]
[361754811,1747761045370,-969.16304316,0.00029107,20]
[361754812,1747761045380,-969.16304316,0.00029659,21]
[361754813,1747761045393,-455.0,0.0003,14]
[361754814,1747761045405,-969.16304316,0.0003021,22]
[361754815,1747761045416,-455.0,0.00030411,14]
[361754816,1747761045426,-969.16304316,0.00030762,23]
[361754817,1747761045438,-166.49,0.00031018,2]
[361754818,1747761045449,-1000.0,0.00031018,2]
[361754819,1747761045460,-150.0,0.00031018,7]
[361754820,1747761045471,-324.34,0.00031039,2]
[361754821,1747761045482,-529.94198789,0.00031298,2]
[361754822,1747761045494,-1433.34,0.00031298,5]
[361754823,1747761045504,-969.16304316,0.00031314,24]
[361754824,1747761045515,-455.0,0.00031644,14]
[361754825,1747761045527,-969.16304316,0.00031866,25]
[361754826,1747761045538,-207.4,0.00032257,2]
[361754827,1747761045548,-1199.20597016,0.00032257,2]
[361754828,1747761045564,-333.23320578,0.00032257,2]
[361754829,1747761045575,-297.83468955,0.00032257,2]
[361754830,1747761045585,-170.41,0.00032277,120]
[361754831,1747761045595,-969.16304316,0.00032417,26]
[361754832,1747761045607,-200.0,0.00032834,2]
[361754833,1747761045618,-170.08,0.00032877,2]
[361754834,1747761045630,-150.0,0.00032877,2]
[361754835,1747761045641,-150.0,0.00032877,2]
[361754836,1747761045651,-150.0,0.00032877,2]
[361754837,1747761045661,-353.3,0.00032877,2]
[361754838,1747761045671,-150.0,0.00032877,2]
[361754839,1747761045682,-162.78,0.00032878,2]
[361754840,1747761045692,-150.0,0.00032878,2]
[361754841,1747761045703,-353.3,0.00032878,2]
[361754842,1747761045713,-170.08,0.00032878,2]
[361754843,1747761045723,-150.0,0.00032878,2]
[361754844,1747761045733,-162.78,0.00032878,2]
[361754845,1747761045744,-150.0,0.00032878,2]
[361754846,1747761045755,-150.0,0.00032878,2]
[361754847,1747761045765,-353.3,0.00032878,2]
[361754848,1747761045777,-231.56,0.0003294,2]
[361754849,1747761045787,-969.16304316,0.00032969,28]
[361754850,1747761045797,-350.0,0.00033,6]
[361754851,1747761045808,-507.0,0.00033001,30]
[361754852,1747761045818,-156.49,0.00033001,30]
[361754853,1747761045828,-152.94,0.00033178,2]
[361754854,1747761045838,-170.08,0.00033178,2]
[361754855,1747761045848,-462.0,0.00033226,30]
[361754856,1747761045858,-324.34,0.00033303,2]
[361754857,1747761045868,-204.0,0.00033446,2]
[361754858,1747761045878,-201.0,0.00033446,2]
[361754859,1747761045888,-151.8,0.000335,2]
[361754860,1747761045899,-152.64,0.000335,31]
[361754861,1747761045909,-152.64,0.000335,31]
[361754862,1747761045920,-152.64,0.000335,31]
[361754863,1747761045931,-152.64,0.000335,31]
[361754864,1747761045942,-152.64,0.000335,31]
[361754865,1747761045951,-152.64,0.000335,31]
[361754866,1747761045961,-152.64,0.000335,31]
[361754867,1747761045971,-152.64,0.000335,31]
[361754868,1747761045982,-152.64,0.000335,31]
[361754869,1747761045992,-776.05569831,0.00033521,29]
[361754870,1747761046007,-193.10734485,0.00033521,29]
[361754871,1747761046033,-215.0738,0.00033626,2]
[361754872,1747761046047,-150.0,0.00033699,2]
[361754873,1747761046057,-353.3,0.00033699,2]
[361754874,1747761046067,-170.08,0.00033699,2]
[361754875,1747761046078,-247.0083647,0.00033699,2]
[361754876,1747761046101,-121.7116353,0.00033699,2]
[361754877,1747761046112,-170.08,0.00033699,2]
[361754878,1747761046122,-246.6445065,0.00033699,2]
[361754879,1747761046134,-106.6554935,0.00033699,2]
[361754880,1747761046146,-150.0,0.00033699,2]
[361754881,1747761046157,-150.0,0.00033699,2]
[361754882,1747761046168,-76.4467892,0.00033699,2]
[361754883,1747761046181,-93.6332108,0.00033699,2]
[361754884,1747761046193,-353.3,0.00033699,2]
[361754885,1747761046206,-150.32,0.00033699,2]
[361754886,1747761046216,-146.83989678,0.00033699,2]
[361754887,1747761046230,-206.46010322,0.00033699,2]
[361754888,1747761046242,-150.32,0.00033699,2]
[361754889,1747761046254,-169.27,0.00033699,2]
[361754890,1747761046264,-150.32,0.00033699,2]
[361754891,1747761046274,-150.32,0.00033699,2]
[361754892,1747761046283,-353.3,0.00033699,2]
[361754893,1747761046294,-150.32,0.00033699,2]
[361754894,1747761046304,-353.3,0.00033699,2]
[361754895,1747761046315,-150.32,0.00033699,2]
[361754896,1747761046325,-353.3,0.00033699,2]
[361754897,1747761046335,-150.32,0.00033699,2]
[361754899,1747761046345,-150.32,0.00033699,2]
[361754901,1747761046355,-353.3,0.00033699,2]
[361754903,1747761046364,-150.32,0.00033699,2]
[361754905,1747761046374,-150.32,0.00033699,2]
[361754907,1747761046385,-353.3,0.00033699,2]
[361754909,1747761046396,-150.32,0.00033699,2]
[361754911,1747761046407,-300.32,0.00033699,2]
[361754913,1747761046418,-701.44,0.00033699,2]
[361754915,1747761046428,-353.3,0.00033699,2]
[361754917,1747761046439,-150.32,0.00033699,2]
[361754919,1747761046449,-150.32,0.00033699,2]
[361754921,1747761046459,-353.3,0.00033699,2]
[361754924,1747761046477,-150.32,0.00033699,2]
[361754926,1747761046489,-156.53,0.00033699,2]
[361754928,1747761046501,-150.32,0.00033699,2]
[361754930,1747761046511,-150.32,0.00033699,2]
[361754933,1747761046523,-150.32,0.00033699,2]
[361754935,1747761046534,-150.32,0.00033699,2]
[361754937,1747761046544,-150.0,0.00033727,2]
[361754939,1747761046555,-150.0,0.00033729,2]
[361754941,1747761046566,-150.0,0.00033729,2]
[361754943,1747761046576,-61.12649061,0.00033736,2]
[361754945,1747761046589,-88.87350939,0.00033736,2]
[361754948,1747761046600,-150.0,0.00033738,2]
[361754950,1747761046610,-34.53553816,0.0003374,2]
[361754952,1747761046628,-115.46446184,0.0003374,2]
[361754954,1747761046638,-150.0,0.0003374,2]
[361754957,1747761046648,-150.0,0.00033745,2]
[361754959,1747761046658,-150.0,0.00033748,2]
[361754961,1747761046669,-150.0,0.00033748,2]
[361754962,1747761046679,-150.0,0.00033767,2]
[361754965,1747761046689,-150.0,0.00033767,2]
[361754967,1747761046699,-150.0,0.00033778,2]
[361754969,1747761046710,-150.0,0.00033783,2]
[361754971,1747761046720,-150.0,0.00033786,2]
[361754973,1747761046730,-150.0,0.00033799,2]
[361754975,1747761046740,-17071.11265107,0.000338,9]
[361754977,1747761046750,-366.976,0.000338,36]
[361754979,1747761046760,-150.0,0.00033803,2]
[361754981,1747761046771,-150.0,0.00033812,2]
[361754983,1747761046782,-150.0,0.00033812,2]
[361754985,1747761046792,-150.0,0.00033823,2]
[361754987,1747761046804,-150.0,0.00033827,2]
[361754989,1747761046819,-150.0,0.00033827,2]
[361754991,1747761046833,-150.0,0.0003383,2]
[361754993,1747761046844,-150.0,0.00033832,2]
[361754995,1747761046854,-150.0,0.00033837,2]
[361754997,1747761046865,-150.0,0.0003384,2]
[361754999,1747761046878,-150.0,0.00033847,2]
[361755001,1747761046888,-150.0,0.00033847,2]
[361755003,1747761046898,-150.0,0.00033848,2]
[361755005,1747761046907,-150.0,0.00033851,2]
[361755007,1747761046917,-150.0,0.00033854,2]
[361755015,1747761047689,-407.3159,0.00033855,2]
[361755016,1747761047706,-150.0,0.00033858,2]
[361755017,1747761047717,-150.0,0.00033862,2]
[361755018,1747761047728,-5345.64453747,0.00033866,2]
[361755019,1747761047738,-150.0,0.00033867,2]
[361755020,1747761047748,-150.0,0.00033869,2]
[361755021,1747761047758,-150.0,0.00033871,2]
[361755022,1747761047768,-150.0,0.00033875,2]
[361755023,1747761047780,-150.0,0.00033878,2]
[361755024,1747761047790,-150.0,0.00033879,2]
[361755025,1747761047799,-173.29612633,0.00033882,15]
[361755026,1747761047810,-150.0,0.00033883,2]
[361755027,1747761047820,-229.19539845,0.00033884,2]
[361755028,1747761047830,-150.0,0.00033888,2]
[361755029,1747761047840,-150.0,0.00033898,2]
[361755030,1747761047850,-186.62446222,0.000339,2]
[361755031,1747761047861,-150.0,0.00033903,2]
[361755032,1747761047872,-150.0,0.00033908,2]
[361755033,1747761047882,-150.0,0.00033925,2]
[361755034,1747761047892,-150.0,0.00033926,2]
[361755035,1747761047902,-150.0,0.00033931,2]
[361755036,1747761047912,-150.0,0.00033932,2]
[361755037,1747761047923,-150.0,0.00033935,2]
[361755038,1747761047933,-150.0,0.00033935,2]
[361755039,1747761047944,-150.0,0.00033937,2]
[361755040,1747761047953,-150.0,0.00033938,2]
[361755041,1747761047963,-150.0,0.00033945,2]
[361755042,1747761047972,-150.0,0.00033948,2]
[361755043,1747761047983,-150.0,0.0003395,2]
[361755044,1747761047992,-150.0,0.00033954,2]
[361755045,1747761048002,-150.0,0.00033955,2]
[361755046,1747761048012,-150.0,0.00033965,2]
[361755047,1747761048022,-1471.91,0.00033966,30]
[361755048,1747761048032,-1471.91,0.00033966,30]
[361755049,1747761048042,-1471.91,0.00033966,30]
[361755050,1747761048052,-1471.91,0.00033966,30]
[361755051,1747761048062,-1471.91,0.00033966,30]
[361755052,1747761048073,-1471.91,0.00033966,30]
[361755053,1747761048083,-1471.91,0.00033966,30]
[361755054,1747761048093,-1471.91,0.00033966,30]
[361755055,1747761048102,-1471.91,0.00033966,30]
[361755056,1747761048112,-1471.91,0.00033966,30]
[361755057,1747761048122,-1471.91,0.00033966,30]
[361755058,1747761048132,-1471.91,0.00033966,30]
[361755059,1747761048142,-1471.91,0.00033966,30]
[361755060,1747761048152,-1471.91,0.00033966,30]
[361755061,1747761048163,-1471.91,0.00033966,30]
[361755062,1747761048174,-1471.91,0.00033966,30]
[361755063,1747761048184,-1471.91,0.00033966,30]
[361755064,1747761048194,-1471.91,0.00033966,30]
[361755065,1747761048203,-185.85309543,0.00033966,30]
[361755066,1747761048217,-1286.05690457,0.00033966,30]